[Event "Early-Titled-Tuesday-Blitz-February-06-2024"]
[Site "Chess.com"]
[Date "2024.02.06"]
[Round "6"]
[White "Sam_ChessMood"]
[Black "FabianoCaruana"]
[Result "1/2-1/2"]
[WhiteElo "2917"]
[BlackElo "3047"]
[TimeControl "180+1"]
[EndTime "9:08:32 PST"]
[Termination "Game drawn by agreement"]

1. d4 {[%clk 0:03:00]} 1... Nf6 {[%clk 0:02:59.8]} 2. c4 {[%clk 0:03:00.1]} 2...
e6 {[%clk 0:03:00.3]} 3. Nf3 {[%clk 0:02:58.7]} 3... d5 {[%clk 0:03:00.5]} 4.
Nc3 {[%clk 0:02:57.8]} 4... Bb4 {[%clk 0:03:01]} 5. Qa4+ {[%clk 0:02:54.8]} 5...
Nc6 {[%clk 0:03:00.5]} 6. e3 {[%clk 0:02:54.9]} 6... O-O {[%clk 0:03:00.6]} 7.
Qc2 {[%clk 0:02:54.6]} 7... b6 {[%clk 0:02:55.9]} 8. Bd2 {[%clk 0:02:48]} 8...
Bb7 {[%clk 0:02:54.5]} 9. a3 {[%clk 0:02:44.7]} 9... Bd6 {[%clk 0:02:53.6]} 10.
Nb5 {[%clk 0:02:35.6]} 10... Be7 {[%clk 0:02:50.5]} 11. Be2 {[%clk 0:02:30.1]}
11... a6 {[%clk 0:02:44.6]} 12. Nc3 {[%clk 0:02:29.8]} 12... Bd6 {[%clk
0:02:41.8]} 13. O-O {[%clk 0:02:19.1]} 13... Ne7 {[%clk 0:02:33.6]} 14. b4
{[%clk 0:02:13.2]} 14... dxc4 {[%clk 0:02:31.9]} 15. e4 {[%clk 0:02:01.5]} 15...
c5 {[%clk 0:02:23.6]} 16. dxc5 {[%clk 0:01:37.3]} 16... Bc7 {[%clk 0:02:13.2]}
17. Be3 {[%clk 0:01:23.9]} 17... b5 {[%clk 0:02:07.8]} 18. Rfd1 {[%clk 0:01:22]}
18... Qb8 {[%clk 0:01:58.4]} 19. h3 {[%clk 0:01:19.4]} 19... Ng6 {[%clk
0:01:54.9]} 20. a4 {[%clk 0:01:15.2]} 20... Bf4 {[%clk 0:01:14.4]} 21. Bxf4
{[%clk 0:00:50.9]} 21... Nxf4 {[%clk 0:01:15.3]} 22. Bf1 {[%clk 0:00:48.3]}
22... a5 {[%clk 0:01:00.1]} 23. axb5 {[%clk 0:00:28.9]} 23... axb4 {[%clk
0:00:59]} 24. c6 {[%clk 0:00:26.3]} 24... Rxa1 {[%clk 0:00:52.9]} 25. Rxa1
{[%clk 0:00:25.1]} 25... bxc3 {[%clk 0:00:52.7]} 26. Qxc3 {[%clk 0:00:25.2]}
26... Bc8 {[%clk 0:00:41.4]} 27. Qxc4 {[%clk 0:00:25.1]} 27... e5 {[%clk
0:00:35.4]} 28. Qc5 {[%clk 0:00:21.3]} 28... Nxe4 {[%clk 0:00:33.1]} 29. Qxe5
{[%clk 0:00:21.4]} 29... Qxe5 {[%clk 0:00:28.5]} 30. Nxe5 {[%clk 0:00:22.3]}
30... Nd5 {[%clk 0:00:23.4]} 31. Nc4 {[%clk 0:00:13.7]} 31... Nc5 {[%clk
0:00:07]} 32. b6 {[%clk 0:00:11.4]} 32... g6 {[%clk 0:00:07]} 33. c7 {[%clk
0:00:08.4]} 33... Ne6 {[%clk 0:00:04.8]} 34. Ra7 {[%clk 0:00:06.8]} 34... Bd7
{[%clk 0:00:04]} 35. Be2 {[%clk 0:00:03.5]} 35... Kg7 {[%clk 0:00:04.1]} 36. Bf3
{[%clk 0:00:03.7]} 36... Nb4 {[%clk 0:00:03.7]} 37. Ne5 {[%clk 0:00:03.4]} 37...
Bb5 {[%clk 0:00:02.8]} 38. b7 {[%clk 0:00:03.5]} 38... Nxc7 {[%clk 0:00:02.5]}
39. b8=Q {[%clk 0:00:03.3]} 39... Rxb8 {[%clk 0:00:03.1]} 40. Rxc7 {[%clk
0:00:04.1]} 40... Be8 {[%clk 0:00:04]} 41. Rc4 {[%clk 0:00:03.6]} 41... Na6
{[%clk 0:00:03.8]} 42. Rc1 {[%clk 0:00:03.7]} 42... Nb4 {[%clk 0:00:04.1]} 43.
Rb1 {[%clk 0:00:03.6]} 43... Na6 {[%clk 0:00:03.9]} 44. Rxb8 {[%clk 0:00:03.4]}
44... Nxb8 {[%clk 0:00:04.8]} 45. Nd3 {[%clk 0:00:04.1]} 45... f6 {[%clk
0:00:04.9]} 46. Nc5 {[%clk 0:00:04.1]} 46... Bf7 {[%clk 0:00:05.1]} 47. g3
{[%clk 0:00:04.5]} 47... Be8 {[%clk 0:00:05.3]} 48. Nd3 {[%clk 0:00:04.6]} 48...
Nd7 {[%clk 0:00:05.5]} 49. Bc6 {[%clk 0:00:04.1]} 49... Kf8 {[%clk 0:00:05.8]}
50. Bxd7 {[%clk 0:00:04.1]} 50... Bxd7 {[%clk 0:00:05.9]} 51. h4 {[%clk
0:00:04.8]} 51... Ke7 {[%clk 0:00:06.2]} 52. Nf4 {[%clk 0:00:05.1]} 52... g5
{[%clk 0:00:06.1]} 53. hxg5 {[%clk 0:00:05]} 53... fxg5 {[%clk 0:00:07]} 54. Ng2
{[%clk 0:00:05.2]} 54... Kf6 {[%clk 0:00:07.1]} 55. f4 {[%clk 0:00:05.3]} 55...
gxf4 {[%clk 0:00:06.7]} 56. Nxf4 {[%clk 0:00:05.3]} 56... Kg5 {[%clk 0:00:05.6]}
1/2-1/2

[Event "Early-Titled-Tuesday-Blitz-February-06-2024"]
[Site "Chess.com"]
[Date "2024.02.06"]
[Round "6"]
[White "ozates"]
[Black "ilushka"]
[Result "1/2-1/2"]
[WhiteElo "2626"]
[BlackElo "2435"]
[TimeControl "180+1"]
[EndTime "9:08:38 PST"]
[Termination "Game drawn by repetition"]

1. e4 {[%clk 0:03:00.9]} 1... e6 {[%clk 0:03:00.3]} 2. d4 {[%clk 0:03:00.7]}
2... d5 {[%clk 0:03:01]} 3. Nd2 {[%clk 0:03:01.4]} 3... c5 {[%clk 0:03:01]} 4.
exd5 {[%clk 0:03:01.2]} 4... exd5 {[%clk 0:03:01.9]} 5. Ngf3 {[%clk 0:03:01.5]}
5... a6 {[%clk 0:03:02.2]} 6. Be2 {[%clk 0:03:01.7]} 6... Nf6 {[%clk 0:03:02.6]}
7. O-O {[%clk 0:03:02.4]} 7... Be7 {[%clk 0:03:02.7]} 8. dxc5 {[%clk 0:03:02.3]}
8... Bxc5 {[%clk 0:03:03.6]} 9. Nb3 {[%clk 0:03:02.7]} 9... Bb6 {[%clk
0:03:02.9]} 10. a4 {[%clk 0:02:57.8]} 10... O-O {[%clk 0:03:00]} 11. a5 {[%clk
0:02:57.4]} 11... Bc7 {[%clk 0:03:00.4]} 12. h3 {[%clk 0:02:57.4]} 12... Nc6
{[%clk 0:02:58.9]} 13. Bd2 {[%clk 0:02:56]} 13... Ne4 {[%clk 0:02:55.5]} 14. Be1
{[%clk 0:02:55.7]} 14... Qd6 {[%clk 0:02:41.3]} 15. Bd2 {[%clk 0:01:38.4]} 15...
Bf5 {[%clk 0:02:30]} 16. Be3 {[%clk 0:01:30.4]} 16... Rfe8 {[%clk 0:02:23.6]}
17. Nbd4 {[%clk 0:01:23.3]} 17... Bg6 {[%clk 0:02:16.1]} 18. Nxc6 {[%clk
0:01:05.5]} 18... bxc6 {[%clk 0:02:15.2]} 19. Re1 {[%clk 0:00:57.1]} 19... Bh5
{[%clk 0:02:14.1]} 20. g4 {[%clk 0:00:56.9]} 20... Bg6 {[%clk 0:02:12.8]} 21.
Bf1 {[%clk 0:00:42.1]} 21... h5 {[%clk 0:02:07.8]} 22. Bg2 {[%clk 0:00:38.6]}
22... hxg4 {[%clk 0:02:08]} 23. hxg4 {[%clk 0:00:39.5]} 23... f5 {[%clk
0:01:48.6]} 24. gxf5 {[%clk 0:00:32.3]} 24... Bxf5 {[%clk 0:01:48.7]} 25. Kf1
{[%clk 0:00:07.2]} 25... Bg4 {[%clk 0:01:47.7]} 26. Qd4 {[%clk 0:00:06.3]} 26...
Rf8 {[%clk 0:01:38]} 27. Ng5 {[%clk 0:00:06.6]} 27... Ng3+ {[%clk 0:00:28.3]}
28. Kg1 {[%clk 0:00:06.8]} 28... Ne2+ {[%clk 0:00:28.7]} 29. Rxe2 {[%clk
0:00:07.1]} 29... Bxe2 {[%clk 0:00:29.6]} 30. Qh4 {[%clk 0:00:06.4]} 30... Qg6
{[%clk 0:00:26.8]} 31. Re1 {[%clk 0:00:07]} 31... Qh5 {[%clk 0:00:21.2]} 32.
Qxh5 {[%clk 0:00:06.8]} 32... Bxh5 {[%clk 0:00:21]} 33. Bd4 {[%clk 0:00:06.4]}
33... Rae8 {[%clk 0:00:17.5]} 34. Ra1 {[%clk 0:00:06.2]} 34... Rf5 {[%clk
0:00:14.3]} 35. Nh3 {[%clk 0:00:06.6]} 35... Re4 {[%clk 0:00:10.5]} 36. Be3
{[%clk 0:00:07.1]} 36... Rf8 {[%clk 0:00:08.4]} 37. Bxe4 {[%clk 0:00:07.1]}
37... dxe4 {[%clk 0:00:08.3]} 38. Ng5 {[%clk 0:00:08]} 38... Bg6 {[%clk
0:00:06.9]} 39. Rd1 {[%clk 0:00:07.6]} 39... Rd8 {[%clk 0:00:07.3]} 40. Rxd8+
{[%clk 0:00:08.2]} 40... Bxd8 {[%clk 0:00:08.2]} 41. Ne6 {[%clk 0:00:08.9]}
41... Bxa5 {[%clk 0:00:08.2]} 42. Nd4 {[%clk 0:00:09.2]} 42... c5 {[%clk
0:00:06.8]} 43. Nb3 {[%clk 0:00:09.5]} 43... Bb6 {[%clk 0:00:06.1]} 44. Nxc5
{[%clk 0:00:09.7]} 44... Bxc5 {[%clk 0:00:06.2]} 45. Bxc5 {[%clk 0:00:10.6]}
45... Kf7 {[%clk 0:00:05.6]} 46. Be3 {[%clk 0:00:10.5]} 46... Bf5 {[%clk
0:00:06.1]} 47. c4 {[%clk 0:00:11]} 47... Ke6 {[%clk 0:00:06.5]} 48. b4 {[%clk
0:00:11.7]} 48... Kd6 {[%clk 0:00:06.3]} 49. Kg2 {[%clk 0:00:11.8]} 49... Be6
{[%clk 0:00:05.6]} 50. c5+ {[%clk 0:00:08]} 50... Kd5 {[%clk 0:00:06]} 51. Kg3
{[%clk 0:00:08.3]} 51... Kc4 {[%clk 0:00:05.8]} 52. Kf4 {[%clk 0:00:08.5]} 52...
Kxb4 {[%clk 0:00:04.9]} 53. Kxe4 {[%clk 0:00:08.9]} 53... Kb5 {[%clk 0:00:03.5]}
54. Ke5 {[%clk 0:00:09.4]} 54... Bd7 {[%clk 0:00:03.4]} 55. Kd6 {[%clk
0:00:09.8]} 55... Bc6 {[%clk 0:00:03.7]} 56. Bd4 {[%clk 0:00:10.3]} 56... g6
{[%clk 0:00:04.2]} 57. f4 {[%clk 0:00:10.6]} 57... a5 {[%clk 0:00:04.6]} 58. Ke7
{[%clk 0:00:10.8]} 58... a4 {[%clk 0:00:05.1]} 59. Kf6 {[%clk 0:00:11.1]} 59...
Be4 {[%clk 0:00:05.4]} 60. Ke5 {[%clk 0:00:11.6]} 60... Bf5 {[%clk 0:00:04.8]}
61. Kd6 {[%clk 0:00:11.9]} 61... Be4 {[%clk 0:00:04.3]} 62. Ke5 {[%clk
0:00:12.4]} 62... Bf5 {[%clk 0:00:04.4]} 63. Kd6 {[%clk 0:00:12.4]} 63... Be4
{[%clk 0:00:04.7]} 64. Ke5 {[%clk 0:00:10.1]} 1/2-1/2

[Event "Early-Titled-Tuesday-Blitz-February-06-2024"]
[Site "Chess.com"]
[Date "2024.02.06"]
[Round "6"]
[White "ChampStan"]
[Black "carloseduar100"]
[Result "0-1"]
[WhiteElo "2115"]
[BlackElo "2310"]
[TimeControl "180+1"]
[EndTime "9:08:39 PST"]
[Termination "carloseduar100 won on time"]

1. e4 {[%clk 0:03:00]} 1... e6 {[%clk 0:02:59.2]} 2. d4 {[%clk 0:02:58.8]} 2...
d5 {[%clk 0:03:00.1]} 3. exd5 {[%clk 0:02:54]} 3... exd5 {[%clk 0:02:59.5]} 4.
Nf3 {[%clk 0:02:53.7]} 4... Bd6 {[%clk 0:03:00.1]} 5. Bd3 {[%clk 0:02:51.8]}
5... Ne7 {[%clk 0:03:00.7]} 6. O-O {[%clk 0:02:50.1]} 6... O-O {[%clk
0:03:01.2]} 7. Ng5 {[%clk 0:02:49]} 7... h6 {[%clk 0:02:57.3]} 8. Qh5 {[%clk
0:02:47.1]} 8... Bf5 {[%clk 0:02:50.9]} 9. Bxf5 {[%clk 0:02:42.2]} 9... Nxf5
{[%clk 0:02:51.8]} 10. Nf3 {[%clk 0:02:34.6]} 10... Qf6 {[%clk 0:02:51.1]} 11.
Be3 {[%clk 0:02:28]} 11... Nd7 {[%clk 0:02:48]} 12. Nc3 {[%clk 0:02:27]} 12...
c6 {[%clk 0:02:47.1]} 13. Qh3 {[%clk 0:02:14.8]} 13... Rfe8 {[%clk 0:02:39.5]}
14. Rae1 {[%clk 0:02:10.6]} 14... Nf8 {[%clk 0:02:39.8]} 15. Nd1 {[%clk
0:02:01.4]} 15... Ng6 {[%clk 0:02:40.1]} 16. Qg4 {[%clk 0:01:48.3]} 16... Re4
{[%clk 0:02:38.4]} 17. Qh3 {[%clk 0:01:38.6]} 17... Rae8 {[%clk 0:02:38]} 18.
Nc3 {[%clk 0:01:34.9]} 18... R4e6 {[%clk 0:01:51.1]} 19. Nd1 {[%clk 0:01:19.1]}
19... Bf4 {[%clk 0:01:48.6]} 20. Qg4 {[%clk 0:00:46.9]} 20... Bxe3 {[%clk
0:01:28.3]} 21. fxe3 {[%clk 0:00:41.1]} 21... Nxe3 {[%clk 0:01:28.6]} 22. Nxe3
{[%clk 0:00:39.3]} 22... Rxe3 {[%clk 0:01:29.5]} 23. Rxe3 {[%clk 0:00:38.6]}
23... Rxe3 {[%clk 0:01:30.4]} 24. Qc8+ {[%clk 0:00:38.8]} 24... Nf8 {[%clk
0:01:31.1]} 25. Qxb7 {[%clk 0:00:38.6]} 25... Re7 {[%clk 0:00:38.1]} 26. Qa6
{[%clk 0:00:34.1]} 26... Ng6 {[%clk 0:00:35.3]} 27. Qc8+ {[%clk 0:00:31.1]}
27... Kh7 {[%clk 0:00:32.4]} 28. Qa6 {[%clk 0:00:26.2]} 28... Nf4 {[%clk
0:00:32]} 29. Ne5 {[%clk 0:00:13.5]} 29... Qg5 {[%clk 0:00:25.8]} 30. g3 {[%clk
0:00:12.4]} 30... Nh3+ {[%clk 0:00:24.6]} 31. Kg2 {[%clk 0:00:12]} 31... f6
{[%clk 0:00:20.1]} 32. Qd3+ {[%clk 0:00:09.5]} 32... Kg8 {[%clk 0:00:15]} 33.
Ng6 {[%clk 0:00:08]} 33... Re4 {[%clk 0:00:06.3]} 34. Kxh3 {[%clk 0:00:07.6]}
34... Qxg6 {[%clk 0:00:06.2]} 35. Kg2 {[%clk 0:00:07.8]} 35... Qg4 {[%clk
0:00:05.7]} 36. c3 {[%clk 0:00:06.6]} 36... Qe2+ {[%clk 0:00:05.2]} 37. Qxe2
{[%clk 0:00:06.5]} 37... Rxe2+ {[%clk 0:00:06.1]} 38. Rf2 {[%clk 0:00:07.2]}
38... Rxf2+ {[%clk 0:00:06.1]} 39. Kxf2 {[%clk 0:00:07.5]} 39... Kf7 {[%clk
0:00:07]} 40. Kf3 {[%clk 0:00:07.9]} 40... Ke6 {[%clk 0:00:07.9]} 41. Kf4 {[%clk
0:00:07.9]} 41... f5 {[%clk 0:00:08.4]} 42. h4 {[%clk 0:00:07.4]} 42... Kf6
{[%clk 0:00:08.6]} 43. a4 {[%clk 0:00:06.7]} 43... g5+ {[%clk 0:00:09.2]} 44.
hxg5+ {[%clk 0:00:06.2]} 44... hxg5+ {[%clk 0:00:10.1]} 45. Kf3 {[%clk
0:00:06.2]} 45... Ke6 {[%clk 0:00:11]} 46. b3 {[%clk 0:00:05.3]} 46... Kd6
{[%clk 0:00:11.5]} 47. Ke3 {[%clk 0:00:04.7]} 47... c5 {[%clk 0:00:11]} 48.
dxc5+ {[%clk 0:00:03.9]} 48... Kxc5 {[%clk 0:00:11.9]} 49. Kd3 {[%clk
0:00:03.3]} 49... a5 {[%clk 0:00:12.4]} 50. Ke3 {[%clk 0:00:01.3]} 50... Kc6
{[%clk 0:00:07.5]} 51. Kd4 {[%clk 0:00:01.6]} 51... Kd6 {[%clk 0:00:08]} 52. b4
{[%clk 0:00:01.8]} 52... axb4 {[%clk 0:00:07.6]} 53. cxb4 {[%clk 0:00:01.8]}
53... Kc6 {[%clk 0:00:08.1]} 0-1

[Event "Early-Titled-Tuesday-Blitz-February-06-2024"]
[Site "Chess.com"]
[Date "2024.02.06"]
[Round "6"]
[White "Kotlyar_K"]
[Black "Boundless_Strike"]
[Result "1-0"]
[WhiteElo "2490"]
[BlackElo "2656"]
[TimeControl "180+1"]
[EndTime "9:08:41 PST"]
[Termination "Kotlyar_K won on time"]

1. d4 {[%clk 0:03:00.9]} 1... e6 {[%clk 0:02:59.7]} 2. c4 {[%clk 0:02:58.3]}
2... f5 {[%clk 0:02:59.7]} 3. g3 {[%clk 0:02:53.9]} 3... Nf6 {[%clk 0:02:55.6]}
4. Bg2 {[%clk 0:02:54.3]} 4... d5 {[%clk 0:02:55.9]} 5. Qc2 {[%clk 0:02:32]}
5... Be7 {[%clk 0:02:54.5]} 6. Nh3 {[%clk 0:02:32.1]} 6... Nc6 {[%clk
0:02:50.9]} 7. e3 {[%clk 0:02:29.7]} 7... O-O {[%clk 0:02:45.6]} 8. O-O {[%clk
0:02:29.7]} 8... Ne4 {[%clk 0:02:44.7]} 9. Nd2 {[%clk 0:02:24.5]} 9... Bd7
{[%clk 0:02:43.4]} 10. Nf4 {[%clk 0:02:22.7]} 10... Nb4 {[%clk 0:02:25.1]} 11.
Qb3 {[%clk 0:02:17.2]} 11... c6 {[%clk 0:02:24.7]} 12. a3 {[%clk 0:02:13.8]}
12... Na6 {[%clk 0:02:24.8]} 13. Nxe4 {[%clk 0:02:10.1]} 13... fxe4 {[%clk
0:02:22]} 14. Qxb7 {[%clk 0:02:08]} 14... Nc7 {[%clk 0:02:19.9]} 15. Qb3 {[%clk
0:02:05]} 15... Kh8 {[%clk 0:02:18.4]} 16. Bd2 {[%clk 0:02:01.6]} 16... Rb8
{[%clk 0:02:15.2]} 17. Qc2 {[%clk 0:02:01.5]} 17... g5 {[%clk 0:02:15.5]} 18.
Ne2 {[%clk 0:02:00.6]} 18... Be8 {[%clk 0:02:08.5]} 19. g4 {[%clk 0:01:51]}
19... h5 {[%clk 0:02:03.6]} 20. f3 {[%clk 0:01:41]} 20... exf3 {[%clk
0:00:40.9]} 21. Bxf3 {[%clk 0:01:39.4]} 21... hxg4 {[%clk 0:00:38.4]} 22. Bxg4
{[%clk 0:01:39.4]} 22... Kg7 {[%clk 0:00:38.7]} 23. Ng3 {[%clk 0:01:35.5]} 23...
Bg6 {[%clk 0:00:35.4]} 24. e4 {[%clk 0:01:06.5]} 24... Bd6 {[%clk 0:00:33.4]}
25. Qc1 {[%clk 0:01:01.8]} 25... Bxg3 {[%clk 0:00:27.2]} 26. hxg3 {[%clk
0:01:02.7]} 26... Bxe4 {[%clk 0:00:26.2]} 27. Rxf8 {[%clk 0:00:56.9]} 27... Qxf8
{[%clk 0:00:25.5]} 28. Bxg5 {[%clk 0:00:57.4]} 28... Qh8 {[%clk 0:00:25.5]} 29.
Bh4 {[%clk 0:00:50]} 29... Qh6 {[%clk 0:00:19.6]} 30. b4 {[%clk 0:00:31.7]}
30... Rf8 {[%clk 0:00:12.1]} 31. Qxh6+ {[%clk 0:00:30.2]} 31... Kxh6 {[%clk
0:00:12.8]} 32. Rc1 {[%clk 0:00:23.5]} 32... dxc4 {[%clk 0:00:12.4]} 33. Rxc4
{[%clk 0:00:24.4]} 33... Bd5 {[%clk 0:00:13]} 34. Rc2 {[%clk 0:00:20]} 34... Nb5
{[%clk 0:00:12.7]} 35. Rh2 {[%clk 0:00:14.4]} 35... Kg6 {[%clk 0:00:12.6]} 36.
Rd2 {[%clk 0:00:13.7]} 36... Nxa3 {[%clk 0:00:12.3]} 37. Be2 {[%clk 0:00:12.4]}
37... Nc4 {[%clk 0:00:05.9]} 38. Bd3+ {[%clk 0:00:12.5]} 38... Kg7 {[%clk
0:00:05.7]} 39. Ra2 {[%clk 0:00:12.1]} 39... Rf7 {[%clk 0:00:05]} 40. Bg5 {[%clk
0:00:11.8]} 40... Nd6 {[%clk 0:00:02.3]} 41. Rh2 {[%clk 0:00:10.8]} 41... Nf5
{[%clk 0:00:02.7]} 42. Bf4 {[%clk 0:00:10.1]} 42... Rb7 {[%clk 0:00:02.9]} 43.
Be5+ {[%clk 0:00:10.2]} 43... Kg8 {[%clk 0:00:03.6]} 44. g4 {[%clk 0:00:09.8]}
44... Ng7 {[%clk 0:00:04.1]} 45. Rh7 {[%clk 0:00:09.1]} 45... Rf7 {[%clk
0:00:02.5]} 46. Rh6 {[%clk 0:00:08.2]} 46... Rb7 {[%clk 0:00:02.5]} 47. Rg6
{[%clk 0:00:08.3]} 47... Kf8 {[%clk 0:00:03.1]} 48. Rf6+ {[%clk 0:00:08.2]}
48... Kg8 {[%clk 0:00:03.7]} 49. Bd6 {[%clk 0:00:07.4]} 49... Rf7 {[%clk
0:00:03.4]} 50. Rg6 {[%clk 0:00:06.9]} 50... Rd7 {[%clk 0:00:03.5]} 51. Be5
{[%clk 0:00:07.1]} 51... Rf7 {[%clk 0:00:04]} 52. Rg5 {[%clk 0:00:07.3]} 52...
Kf8 {[%clk 0:00:04.2]} 53. Rg6 {[%clk 0:00:06.6]} 53... Ne8 {[%clk 0:00:04.2]}
54. Rh6 {[%clk 0:00:06.3]} 54... Rf3 {[%clk 0:00:04.1]} 55. Bg6 {[%clk
0:00:04.9]} 1-0

[Event "Early-Titled-Tuesday-Blitz-February-06-2024"]
[Site "Chess.com"]
[Date "2024.02.06"]
[Round "6"]
[White "Atousa"]
[Black "NFChess13"]
[Result "1/2-1/2"]
[WhiteElo "2476"]
[BlackElo "2657"]
[TimeControl "180+1"]
[EndTime "9:08:42 PST"]
[Termination "Game drawn by repetition"]

1. e4 {[%clk 0:02:55.1]} 1... e5 {[%clk 0:02:58.1]} 2. Nf3 {[%clk 0:02:54.5]}
2... Nf6 {[%clk 0:02:58.2]} 3. Nxe5 {[%clk 0:02:52.7]} 3... d5 {[%clk
0:02:58.6]} 4. exd5 {[%clk 0:02:50.5]} 4... Qxd5 {[%clk 0:02:59.5]} 5. d4 {[%clk
0:02:48.9]} 5... Nc6 {[%clk 0:02:58.8]} 6. Nxc6 {[%clk 0:02:47.3]} 6... Qxc6
{[%clk 0:02:59.7]} 7. Nc3 {[%clk 0:02:44.5]} 7... Bb4 {[%clk 0:02:59.1]} 8. Qe2+
{[%clk 0:02:32.8]} 8... Be6 {[%clk 0:02:35.8]} 9. Qb5 {[%clk 0:02:31.6]} 9...
Qxb5 {[%clk 0:02:32.3]} 10. Bxb5+ {[%clk 0:02:31]} 10... c6 {[%clk 0:02:32.5]}
11. Bd3 {[%clk 0:02:24]} 11... O-O-O {[%clk 0:02:26.5]} 12. O-O {[%clk
0:02:15.7]} 12... Rhe8 {[%clk 0:02:05.7]} 13. Ne2 {[%clk 0:01:57.8]} 13... Bg4
{[%clk 0:01:48.3]} 14. f3 {[%clk 0:01:54.5]} 14... Bh5 {[%clk 0:01:48.4]} 15. c3
{[%clk 0:01:51]} 15... Ba5 {[%clk 0:01:49]} 16. Nf4 {[%clk 0:01:42.9]} 16... Bg6
{[%clk 0:01:46.8]} 17. Nxg6 {[%clk 0:01:39.5]} 17... hxg6 {[%clk 0:01:47.7]} 18.
Bc4 {[%clk 0:01:32.3]} 18... Re7 {[%clk 0:01:43.4]} 19. Bf4 {[%clk 0:01:27.8]}
19... b5 {[%clk 0:01:40.2]} 20. Bb3 {[%clk 0:01:26.1]} 20... Bb6 {[%clk
0:01:39.3]} 21. Rfe1 {[%clk 0:01:20.2]} 21... Rde8 {[%clk 0:01:39.4]} 22. Kf1
{[%clk 0:01:16.5]} 22... Nd5 {[%clk 0:01:34.3]} 23. Bxd5 {[%clk 0:01:12.6]}
23... cxd5 {[%clk 0:01:35.2]} 24. Rxe7 {[%clk 0:01:12.4]} 24... Rxe7 {[%clk
0:01:35.2]} 25. Re1 {[%clk 0:01:12.6]} 25... Kd7 {[%clk 0:01:25.6]} 26. Rxe7+
{[%clk 0:00:57.8]} 26... Kxe7 {[%clk 0:01:26.5]} 27. Ke2 {[%clk 0:00:58.1]}
27... Ke6 {[%clk 0:01:25]} 28. Kd3 {[%clk 0:00:57.8]} 28... Kd7 {[%clk
0:01:15.3]} 29. b3 {[%clk 0:00:55.5]} 29... Kc6 {[%clk 0:01:14.9]} 30. c4 {[%clk
0:00:46.4]} 30... Bd8 {[%clk 0:01:14.2]} 31. Be5 {[%clk 0:00:39.5]} 31... f6
{[%clk 0:01:13.9]} 32. cxb5+ {[%clk 0:00:38.3]} 32... Kxb5 {[%clk 0:01:12.1]}
33. Bd6 {[%clk 0:00:38.7]} 33... g5 {[%clk 0:01:06.3]} 34. Bf8 {[%clk
0:00:32.3]} 34... g6 {[%clk 0:01:05.9]} 35. a4+ {[%clk 0:00:20.5]} 35... Kc6
{[%clk 0:01:05.4]} 36. b4 {[%clk 0:00:20.6]} 36... a6 {[%clk 0:01:05.6]} 37. g3
{[%clk 0:00:19]} 37... f5 {[%clk 0:01:00.9]} 38. Kc3 {[%clk 0:00:17.7]} 38...
Bf6 {[%clk 0:00:59.6]} 39. Bc5 {[%clk 0:00:16.3]} 39... Bd8 {[%clk 0:00:57.9]}
40. Kd3 {[%clk 0:00:14.8]} 40... Bf6 {[%clk 0:00:56.2]} 41. Bf8 {[%clk 0:00:15]}
41... Bd8 {[%clk 0:00:55.5]} 42. Bg7 {[%clk 0:00:15.4]} 42... Be7 {[%clk
0:00:54.6]} 43. Kc3 {[%clk 0:00:14.9]} 43... Bd8 {[%clk 0:00:53.8]} 44. Be5
{[%clk 0:00:14.9]} 44... Be7 {[%clk 0:00:53.5]} 45. g4 {[%clk 0:00:12.2]} 45...
Bd8 {[%clk 0:00:51]} 46. Kb3 {[%clk 0:00:10.1]} 46... Be7 {[%clk 0:00:50.9]} 47.
Bg7 {[%clk 0:00:09]} 47... Bd8 {[%clk 0:00:50.4]} 48. Bf8 {[%clk 0:00:09.4]}
48... Bf6 {[%clk 0:00:50.1]} 49. Bc5 {[%clk 0:00:09.6]} 49... Bd8 {[%clk
0:00:49.3]} 50. Kc3 {[%clk 0:00:10]} 50... Bf6 {[%clk 0:00:45.3]} 51. Kd3 {[%clk
0:00:10.4]} 51... Bd8 {[%clk 0:00:44.4]} 52. Ke3 {[%clk 0:00:10.9]} 52... Bc7
{[%clk 0:00:43.1]} 53. h3 {[%clk 0:00:10.7]} 53... Bf4+ {[%clk 0:00:42.9]} 54.
Ke2 {[%clk 0:00:10.3]} 54... Bc1 {[%clk 0:00:42.4]} 55. Kf2 {[%clk 0:00:10]}
55... Bf4 {[%clk 0:00:41.5]} 56. Kg2 {[%clk 0:00:10.3]} 56... Bc1 {[%clk
0:00:40.5]} 57. Kf2 {[%clk 0:00:08.8]} 57... Bf4 {[%clk 0:00:40.3]} 58. Be7
{[%clk 0:00:08.6]} 58... Bc1 {[%clk 0:00:38]} 59. h4 {[%clk 0:00:08.5]} 59...
gxh4 {[%clk 0:00:37.2]} 60. Kg2 {[%clk 0:00:07.6]} 60... fxg4 {[%clk 0:00:34.8]}
61. fxg4 {[%clk 0:00:07.6]} 61... g5 {[%clk 0:00:35]} 62. Kh3 {[%clk 0:00:06.8]}
62... Bd2 {[%clk 0:00:33.5]} 63. Bc5 {[%clk 0:00:06.4]} 63... Be3 {[%clk
0:00:33.2]} 64. Kg2 {[%clk 0:00:06.9]} 64... Bf4 {[%clk 0:00:32]} 65. Kh3 {[%clk
0:00:07.3]} 65... Bc7 {[%clk 0:00:22.7]} 66. Kg2 {[%clk 0:00:07.3]} 66... Kd7
{[%clk 0:00:20.6]} 67. Kh3 {[%clk 0:00:06.3]} 67... Kc6 {[%clk 0:00:20.7]} 68.
Be7 {[%clk 0:00:05.2]} 68... Bf4 {[%clk 0:00:21.6]} 69. Bc5 {[%clk 0:00:05.3]}
69... Be3 {[%clk 0:00:21.7]} 70. Kg2 {[%clk 0:00:05.5]} 70... Bc1 {[%clk
0:00:22.1]} 71. Kh3 {[%clk 0:00:05.7]} 71... Ba3 {[%clk 0:00:22.2]} 72. Kg2
{[%clk 0:00:04.4]} 72... Bc1 {[%clk 0:00:22.3]} 73. Kh3 {[%clk 0:00:04.3]} 73...
Bd2 {[%clk 0:00:22.7]} 74. Kg2 {[%clk 0:00:04.3]} 74... Bf4 {[%clk 0:00:23.6]}
75. Kh3 {[%clk 0:00:04.6]} 1/2-1/2